fUST/lending_fUST_20250205
["ID","MTS","AMOUNT","RATE_DAILY","PERIOD"]
[351730007,1738769446965,-500.0,0.00015397,2]
[351730008,1738769446974,-505.71,0.00015397,2]
[351730009,1738769446983,-565.46,0.00015397,2]
[351730010,1738769446992,-500.0,0.00015397,2]
[351730011,1738769447002,-500.0,0.00015397,2]
[351730012,1738769447011,-500.0,0.00015397,2]
[351730013,1738769447020,-500.0,0.00015397,2]
[351730014,1738769447029,-500.0,0.00015397,2]
[351730015,1738769447038,-500.0,0.00015397,2]
[351730016,1738769447048,-500.0,0.00015397,2]
[351730017,1738769447057,-500.0,0.00015397,2]
[351730018,1738769447067,-500.0,0.00015397,2]
[351730019,1738769447076,-500.0,0.00015397,2]
[351730020,1738769447087,-518.46,0.00015397,2]
[351730021,1738769447097,-500.0,0.00015397,2]
[351730022,1738769447106,-1849.83,0.00015397,2]
[351730023,1738769447115,-500.0,0.00015397,2]
[351730024,1738769447124,-500.0,0.00015397,2]
[351730025,1738769447134,-732.65,0.00015397,2]
[351730026,1738769447143,-500.0,0.00015397,2]
[351730027,1738769447152,-500.0,0.00015397,2]
[351730028,1738769447162,-500.0,0.00015397,2]
[351730029,1738769447172,-500.0,0.00015397,2]
[351730030,1738769447182,-500.0,0.00015397,2]
[351730031,1738769447191,-500.0,0.00015397,2]
[351730032,1738769447201,-500.0,0.00015397,2]
[351730033,1738769447211,-500.0,0.00015397,2]
[351730034,1738769447220,-493.45515902,0.00015397,2]
[351730035,1738769447230,-500.0,0.00015397,2]
[351730036,1738769447240,-721.3,0.00015397,2]
[351730037,1738769447249,-902.28,0.00015397,2]
[351730038,1738769447260,-500.0,0.00015397,2]
[351730039,1738769447270,-500.0,0.00015397,2]
[351730040,1738769447280,-500.0,0.00015397,2]
[351730041,1738769447290,-500.0,0.00015397,2]
[351730042,1738769447300,-665.77,0.00015397,2]
[351730043,1738769447309,-500.0,0.00015397,2]
[351730044,1738769447319,-500.0,0.00015397,2]
[351730045,1738769447328,-731.7,0.00015397,2]
[351730046,1738769447338,-549.23,0.00015397,2]
[351730047,1738769447348,-1195.05,0.00015397,2]
[351730048,1738769447357,-789.68,0.00015397,2]
[351730049,1738769447368,-500.0,0.00015397,2]
[351730050,1738769447379,-522.31791912,0.00015397,2]
[351730051,1738769447389,-500.0,0.00015397,2]
[351730052,1738769447398,-500.0,0.00015397,2]
[351730053,1738769447408,-500.0,0.00015397,2]
[351730054,1738769447418,-500.0,0.00015397,2]
[351730055,1738769447429,-508.79528538,0.00015397,2]
[351730056,1738769447438,-500.0,0.00015397,2]
[351730057,1738769447449,-500.0,0.00015397,2]
[351730058,1738769447459,-803.59,0.00015397,2]
[351730059,1738769447468,-500.0,0.00015397,2]
[351730060,1738769447478,-500.0,0.00015397,2]
[351730061,1738769447488,-500.0,0.00015397,2]
[351730062,1738769447498,-500.0,0.00015397,2]
[351730063,1738769447507,-500.0,0.00015397,2]
[351730064,1738769447517,-500.0,0.00015397,2]
[351730065,1738769447526,-201.9818426,0.00015397,2]
[351730066,1738769447536,-500.0,0.00015397,2]
[351730067,1738769447545,-500.0,0.00015397,2]
[351730068,1738769447555,-500.0,0.00015397,2]
[351730069,1738769447565,-536.76494534,0.00015397,2]
[351730070,1738769447575,-534.5336951,0.00015397,2]
[351730071,1738769447586,-500.0,0.00015397,2]
[351730072,1738769447596,-500.0,0.00015397,2]
[351730073,1738769447606,-500.0,0.00015397,2]
[351730074,1738769447616,-151.0,0.00015397,2]
[351730075,1738769447630,-500.0,0.00015397,2]
[351730076,1738769447639,-500.0,0.00015397,2]
[351730077,1738769447649,-619.05,0.00015397,2]
[351730078,1738769447658,-328.23527834,0.00015397,2]
[351730079,1738769447668,-500.0,0.00015397,2]
[351730080,1738769447678,-151.0,0.00015397,2]
[351730081,1738769447688,-500.0,0.00015397,2]
[351730082,1738769447699,-500.0,0.00015397,2]
[351730083,1738769447710,-500.0,0.00015397,2]
[351730084,1738769447720,-500.0,0.00015397,2]
[351730085,1738769447730,-506.01,0.00015397,2]
[351730086,1738769447739,-500.0,0.00015397,2]
[351730087,1738769447749,-1033.24,0.00015397,2]
[351730088,1738769447759,-500.0,0.00015397,2]
[351730089,1738769447769,-500.0,0.00015397,2]
[351730090,1738769447923,-500.0,0.00015397,2]
[351730091,1738769447934,-508.1595289,0.00015397,2]
[351730092,1738769447944,-500.0,0.00015397,2]
[351730093,1738769447955,-600.57,0.00015397,2]
[351730094,1738769447965,-500.0,0.00015397,2]
[351730095,1738769447976,-500.0,0.00015397,2]
[351730096,1738769447986,-500.0,0.00015397,2]
[351730097,1738769447997,-500.0,0.00015397,2]
[351730098,1738769448007,-500.0,0.00015397,2]
[351730099,1738769448018,-500.0,0.00015397,2]
[351730100,1738769448028,-500.0,0.00015397,2]
[351730101,1738769448039,-500.0,0.00015397,2]
[351730102,1738769448049,-407.41946547,0.00015397,2]
[351730103,1738769448060,-500.0,0.00015397,2]
[351730104,1738769448071,-500.0,0.00015397,2]
[351730105,1738769448082,-808.08,0.00015397,2]
[351730106,1738769448093,-500.0,0.00015397,2]
[351730107,1738769448104,-500.0,0.00015397,2]
[351730108,1738769448114,-500.0,0.00015397,2]
[351730109,1738769448125,-500.0,0.00015397,2]
[351730110,1738769448137,-523.90169399,0.00015397,2]
[351730111,1738769448148,-768.97,0.00015397,2]
[351730112,1738769448160,-500.0,0.00015397,2]
[351730113,1738769448170,-500.0,0.00015397,2]
[351730114,1738769448181,-500.0,0.00015397,2]
[351730115,1738769448191,-500.0,0.00015397,2]
[351730116,1738769448201,-500.0,0.00015397,2]
[351730117,1738769448210,-500.0,0.00015397,2]
[351730118,1738769448218,-232.60850777,0.00015397,2]
[351730119,1738769448228,-500.0,0.00015397,2]
[351730120,1738769448237,-500.0,0.00015397,2]
[351730121,1738769448246,-500.0,0.00015397,2]
[351730122,1738769448255,-500.0,0.00015397,2]
[351730123,1738769448263,-500.0,0.00015397,2]
[351730124,1738769448271,-500.0,0.00015397,2]
[351730125,1738769448281,-500.0,0.00015397,2]
[351730126,1738769448292,-1237.06,0.00015397,2]
[351730127,1738769448303,-499.63457526,0.00015397,2]
[351730128,1738769448314,-500.0,0.00015397,2]
[351730129,1738769448324,-500.0,0.00015397,2]
[351730130,1738769448337,-500.0,0.00015397,2]
[351730131,1738769448349,-500.0,0.00015397,2]
[351730132,1738769448360,-223.61797032,0.00015397,2]
[351730133,1738769448371,-506.57414621,0.00015397,2]
[351730134,1738769448382,-500.0,0.00015397,2]
[351730135,1738769448392,-535.4,0.00015397,2]
[351730136,1738769448403,-500.0,0.00015397,2]
[351730137,1738769448413,-500.0,0.00015397,2]
[351730138,1738769448425,-500.0,0.00015397,2]
[351730139,1738769448436,-500.0,0.00015397,2]
[351730140,1738769448446,-500.0,0.00015397,2]
[351730141,1738769448456,-500.0,0.00015397,2]
[351730142,1738769448467,-500.0,0.00015397,2]
[351730143,1738769448477,-671.43,0.00015397,2]
[351730144,1738769448487,-500.0,0.00015397,2]
[351730145,1738769448498,-500.0,0.00015397,2]
[351730146,1738769448508,-500.0,0.00015397,2]
[351730147,1738769448518,-1282.87,0.00015397,2]
[351730148,1738769448528,-151.0,0.00015397,2]
[351730149,1738769448538,-493.30802377,0.00015397,2]
[351730150,1738769448550,-876.7,0.00015397,2]
[351730151,1738769448560,-500.0,0.00015397,2]
[351730152,1738769448571,-503.38929507,0.00015397,2]
[351730153,1738769448583,-1610.13,0.00015397,2]
[351730154,1738769448593,-500.0,0.00015397,2]
[351730155,1738769448603,-500.0,0.00015397,2]
[351730156,1738769448613,-770.55,0.00015397,2]
[351730157,1738769448627,-657.41,0.00015397,2]
[351730158,1738769448638,-543.26,0.00015397,2]
[351730159,1738769448648,-293.426502,0.00015397,2]
[351730160,1738769448659,-500.0,0.00015397,2]
[351730161,1738769448672,-500.0,0.00015397,2]
[351730162,1738769448683,-500.0,0.00015397,2]
[351730163,1738769448694,-965.1,0.00015397,2]
[351730164,1738769448706,-784.79,0.00015397,2]
[351730165,1738769448716,-888.49,0.00015397,2]
[351730166,1738769448727,-8083.43,0.00015397,2]
[351730167,1738769448738,-500.0,0.00015397,2]
[351730168,1738769448748,-508.76,0.00015397,2]
[351730169,1738769448759,-500.0,0.00015397,2]
[351730170,1738769448770,-500.0,0.00015397,2]
[351730171,1738769448781,-500.0,0.00015397,2]
[351730172,1738769448792,-500.0,0.00015397,2]
[351730173,1738769448802,-500.0,0.00015397,2]
[351730174,1738769448813,-500.0,0.00015397,2]
[351730175,1738769448823,-500.0,0.00015397,2]
[351730176,1738769448834,-500.0,0.00015397,2]
[351730177,1738769448845,-500.0,0.00015397,2]
[351730178,1738769448855,-500.0,0.00015397,2]
[351730179,1738769448865,-862.37,0.00015397,2]
[351730180,1738769448875,-500.0,0.00015397,2]
[351730181,1738769448885,-188.0,0.00015397,2]
[351730182,1738769448896,-500.0,0.00015397,2]
[351730183,1738769448907,-500.0,0.00015397,2]
[351730184,1738769448918,-500.0,0.00015397,2]
[351730185,1738769448928,-500.0,0.00015397,2]
[351730186,1738769448938,-2853.97,0.00015397,2]
[351730187,1738769448948,-501.84635472,0.00015397,2]
[351730188,1738769448959,-500.0,0.00015397,2]
[351730189,1738769448969,-1199.8,0.00015397,2]
[351730190,1738769448979,-500.0,0.00015397,2]
[351730191,1738769448990,-500.0,0.00015397,2]
[351730192,1738769449000,-500.0,0.00015397,2]
[351730193,1738769449011,-500.0,0.00015397,2]
[351730194,1738769449023,-500.0,0.00015397,2]
[351730195,1738769449035,-124655.58,0.00015397,2]
[351730196,1738769449045,-500.0,0.00015397,2]
[351730197,1738769449056,-500.0,0.00015397,2]
[351730198,1738769449066,-500.0,0.00015397,2]
[351730199,1738769449078,-500.0,0.00015397,2]
[351730200,1738769449094,-500.0,0.00015397,2]
[351730201,1738769449105,-500.0,0.00015397,2]
[351730202,1738769449117,-151.0,0.00015397,2]
[351730203,1738769449128,-5131.76,0.00015397,2]
[351730204,1738769449138,-592.54012417,0.00015397,2]
[351730205,1738769449149,-500.0,0.00015397,2]
[351730206,1738769449160,-1310.77025085,0.00015397,2]
[351730207,1738769449447,-2785.86930501,0.00015397,2]
[351730208,1738769449459,-3455.07011468,0.00015397,2]
[351730209,1738769449471,-9548.16131901,0.00015397,2]
[351730210,1738769520944,159.746,0.0001481,2]
[351730472,1738769615665,205.2568777,0.00014259,2]
[351730510,1738769835019,324.025949,0.00013973,2]
[351730511,1738769982456,5965.55,0.00015012,2]
[351730513,1738770019495,4127.5,0.00015012,2]
[351730516,1738770434286,500.0,0.00014164,2]
[351730538,1738770632553,-161.13308677,0.00015154,2]
[351730539,1738770632563,-2328.48994508,0.0001516,2]
[351730540,1738770632689,-671.51005492,0.0001516,2]
[351730541,1738770632699,-2523.15988094,0.0001525,2]
[351730542,1738770632709,-300.0,0.00015252,2]
[351730543,1738770632718,-500.0,0.00015253,2]
[351730544,1738770632728,-5348.43,0.00015253,2]
[351730545,1738770632738,-1353.84,0.00015253,2]
[351730546,1738770632748,-2184.79,0.00015253,2]
[351730547,1738770632758,-571.23678681,0.00015253,2]
[351730548,1738770632771,-561.27321319,0.00015253,2]
[351730549,1738770632781,-500.0,0.00015253,2]
[351730550,1738770632790,-3304.82,0.00015253,2]
[351730551,1738770632800,-500.98277144,0.00015253,2]
[351730552,1738770632810,-557.46,0.00015253,2]
[351730553,1738770632820,-366.57653058,0.00015254,2]
[351730554,1738770632830,-800.81,0.00015254,2]
[351730555,1738770632843,-500.0,0.00015254,2]
[351730556,1738770632853,-500.0,0.00015254,2]
[351730557,1738770632863,-500.0,0.00015254,2]
[351730558,1738770632873,-500.0,0.00015254,2]
[351730559,1738770632883,-500.0,0.00015254,2]
[351730560,1738770632894,-500.0,0.00015254,2]
[351730561,1738770632904,-500.0,0.00015254,2]
[351730562,1738770632913,-500.0,0.00015254,2]
[351730563,1738770632923,-500.0,0.00015254,2]
[351730564,1738770632933,-505.71,0.00015254,2]
[351730565,1738770632943,-500.0,0.00015254,2]
[351730566,1738770632953,-500.0,0.00015254,2]
[351730567,1738770632963,-500.0,0.00015254,2]
[351730568,1738770632973,-567.6,0.00015254,2]
[351730569,1738770632983,-500.0,0.00015254,2]
[351730570,1738770632993,-722.44,0.00015254,2]
[351730571,1738770633003,-500.0,0.00015254,2]
[351730572,1738770633016,-500.0,0.00015254,2]
[351730573,1738770633026,-500.0,0.00015254,2]
[351730574,1738770633037,-500.0,0.00015254,2]
[351730575,1738770633047,-500.0,0.00015254,2]
[351730576,1738770633056,-500.0,0.00015254,2]
[351730577,1738770633066,-511.4767295,0.00015254,2]
[351730578,1738770633076,-767.59,0.00015254,2]
[351730579,1738770633086,-500.0,0.00015254,2]
[351730580,1738770633099,-500.0,0.00015254,2]
[351730581,1738770633109,-500.0,0.00015254,2]
[351730582,1738770633120,-500.0,0.00015254,2]
[351730583,1738770633130,-500.0,0.00015254,2]
[351730584,1738770633142,-500.0,0.00015254,2]
[351730585,1738770633152,-534.98802774,0.00015254,2]
[351730586,1738770633163,-500.0,0.00015254,2]
[351730587,1738770633173,-500.0,0.00015254,2]
[351730588,1738770633184,-500.0,0.00015254,2]
[351730589,1738770633194,-9471.74,0.00015254,2]
[351730590,1738770633205,-529.30405561,0.00015254,2]
[351730591,1738770633216,-836.67,0.00015254,2]
[351730592,1738770633226,-500.0,0.00015254,2]
[351730593,1738770633236,-500.0,0.00015254,2]
[351730594,1738770633247,-500.0,0.00015254,2]
[351730595,1738770633257,-500.66677895,0.00015254,2]
[351730596,1738770633267,-500.0,0.00015254,2]
[351730597,1738770633277,-500.0,0.00015254,2]
[351730598,1738770633287,-500.0,0.00015254,2]
[351730599,1738770633297,-431.87550414,0.00015254,2]
[351730600,1738770633308,-500.0,0.00015254,2]
[351730601,1738770633318,-500.0,0.00015254,2]
[351730602,1738770633328,-500.0,0.00015254,2]
[351730603,1738770633338,-500.0,0.00015254,2]
[351730604,1738770633348,-500.0,0.00015254,2]
[351730605,1738770633357,-500.0,0.00015254,2]
[351730606,1738770633368,-500.75914983,0.00015254,2]
[351730607,1738770633379,-6512.25723905,0.00015254,2]
[351730921,1738770638460,-9774.50276095,0.00015254,2]
[351730922,1738770638470,-500.0,0.00015254,2]
[351730923,1738770638481,-500.0,0.00015254,2]
[351730924,1738770638490,-721.3,0.00015254,2]
[351730925,1738770638500,-500.0,0.00015254,2]
[351730926,1738770638509,-576.96,0.00015254,2]
[351730927,1738770638518,-1794.5,0.00015254,2]
[351730928,1738770638528,-532.8512897,0.00015254,2]
[351730929,1738770638537,-500.0,0.00015254,2]
[351730930,1738770638547,-864.68,0.00015254,2]
[351730931,1738770638556,-500.52938381,0.00015254,2]
[351730932,1738770638566,-500.0,0.00015254,2]
[351730933,1738770638575,-500.0,0.00015254,2]
[351730934,1738770638585,-500.0,0.00015254,2]
[351730935,1738770638596,-500.0,0.00015254,2]
[351730936,1738770638605,-500.0,0.00015254,2]
[351730937,1738770638615,-6591.54,0.00015254,2]
[351730938,1738770638626,-500.0,0.00015254,2]
[351730939,1738770638636,-7984.93,0.00015254,2]
[351730940,1738770638646,-505.8262154,0.00015254,2]
[351730941,1738770638655,-500.0,0.00015254,2]
[351730942,1738770638664,-500.0,0.00015254,2]
[351730943,1738770638674,-500.0,0.00015254,2]
[351730944,1738770638683,-500.0,0.00015254,2]
[351730945,1738770638693,-500.0,0.00015254,2]
[351730946,1738770638703,-3601.47,0.00015254,2]
[351730947,1738770638713,-549.33162169,0.00015254,2]
[351730948,1738770638723,-500.0,0.00015254,2]
[351730949,1738770638732,-500.6529492,0.00015254,2]
[351730950,1738770638742,-500.0,0.00015254,2]
[351730951,1738770638751,-519.99234604,0.00015254,2]
[351730952,1738770638761,-1216.56,0.00015254,2]
[351730953,1738770638771,-500.0,0.00015254,2]
[351730954,1738770638780,-276.59790935,0.00015254,2]
[351730955,1738770638791,-500.0,0.00015254,2]
[351730956,1738770638800,-500.0,0.00015254,2]
[351730957,1738770638810,-2737.34,0.00015254,2]
[351730958,1738770638819,-501.81941806,0.00015254,2]
[351730959,1738770638829,-500.0,0.00015254,2]
[351730960,1738770638838,-500.0,0.00015254,2]
[351730961,1738770638849,-500.82833501,0.00015254,2]
[351730962,1738770638859,-500.0,0.00015254,2]
[351730963,1738770638869,-574.64,0.00015254,2]
[351730964,1738770638879,-1137.79,0.00015255,2]
[351730965,1738770638889,-2964.68,0.00015255,2]
[351730966,1738770638899,-932.31,0.00015255,2]
[351730967,1738770638909,-7325.89,0.00015255,2]
[351730968,1738770638920,-11876.11,0.00015255,2]
[351730969,1738770638931,-2836.04,0.00015255,2]
[351730970,1738770638940,-581.1,0.00015255,2]
[351730971,1738770638950,-575.18,0.00015255,2]
[351730972,1738770638960,-757.21,0.00015255,2]
[351730973,1738770638970,-2825.8,0.00015255,2]
[351730974,1738770638980,-500.0,0.00015255,2]
[351730975,1738770638990,-8659.58,0.00015255,2]
[351730976,1738770639002,-3294.4577708,0.00015255,2]
[351730977,1738770639016,-1046.6922292,0.00015255,2]
[351730978,1738770639027,-3001.25,0.00015255,2]
[351730979,1738770639036,-500.0,0.00015255,2]
[351730980,1738770639046,-500.0,0.00015255,2]
[351730981,1738770639057,-500.0,0.00015255,2]
[351730982,1738770639066,-2228.18,0.00015255,2]
[351730983,1738770639076,-500.0,0.00015255,2]
[351730984,1738770639088,-1336.87,0.00015255,2]
[351730985,1738770639100,-3946.4,0.00015255,2]
[351730986,1738770639111,-500.0,0.00015255,2]
[351730987,1738770639120,-942.02,0.00015255,2]
[351730988,1738770639129,-626.69,0.00015255,2]
[351730989,1738770639139,-7944.61,0.00015255,2]
[351730990,1738770639150,-1519.36,0.00015255,2]
[351730991,1738770639159,-500.0,0.00015255,2]
[351730992,1738770639170,-1471.55,0.00015255,2]
[351730993,1738770639180,-2973.72,0.00015255,2]
[351730994,1738770639190,-630.04,0.00015255,2]
[351730995,1738770639200,-1677.79,0.00015255,2]
[351730996,1738770639211,-500.0,0.00015255,2]
[351730997,1738770639220,-504.85244676,0.00015256,2]
[351730998,1738770639230,-500.0,0.00015256,2]
[351730999,1738770639239,-1083.18,0.00015256,2]
[351731000,1738770639249,-500.0,0.00015256,2]
[351731001,1738770639259,-500.0,0.00015256,2]
[351731002,1738770639269,-500.0,0.00015256,2]
[351731003,1738770639279,-500.0,0.00015256,2]
[351731004,1738770639288,-3236.2,0.00015256,2]
[351731005,1738770639298,-501.66496697,0.00015256,2]
[351731006,1738770639307,-585.37,0.00015256,2]
[351731007,1738770639317,-500.0,0.00015256,2]
[351731008,1738770639327,-2024.42,0.00015256,2]
[351731009,1738770639336,-509.29,0.00015256,2]
[351731010,1738770639348,-547.62,0.00015256,2]
[351731011,1738770639358,-1520.81,0.00015256,2]
[351731012,1738770639368,-352.54752496,0.00015256,2]
[351731013,1738770639378,-1428.77,0.00015256,2]
[351731014,1738770639388,-994.2,0.00015256,2]
[351731015,1738770639397,-597.13,0.00015256,2]
[351731016,1738770639407,-905.46,0.00015256,2]
[351731017,1738770639589,-905.46,0.00015256,2]
[351731018,1738770639602,-905.46,0.00015256,2]
[351731019,1738770639612,-905.46,0.00015256,2]
[351731020,1738770639622,-905.46,0.00015256,2]
[351731021,1738770639632,-905.46,0.00015256,2]
[351731022,1738770639643,-905.46,0.00015256,2]
[351731023,1738770639653,-905.46,0.00015256,2]
[351731024,1738770639663,-905.46,0.00015256,2]
[351731025,1738770639673,-905.46,0.00015256,2]
[351731026,1738770639683,-905.46,0.00015256,2]
[351731027,1738770639693,-905.46,0.00015256,2]
[351731028,1738770639702,-500.0,0.00015256,2]
[351731029,1738770639712,-500.0,0.00015256,2]
[351731030,1738770639722,-2413.81,0.00015256,2]
[351731031,1738770639732,-1158.29,0.00015256,2]
[351731032,1738770639741,-500.0,0.00015256,2]
[351731033,1738770639751,-500.0,0.00015256,2]
[351731034,1738770639760,-500.0,0.00015256,2]
[351731035,1738770639770,-1651.68,0.00015256,2]
[351731036,1738770639780,-586.24,0.00015256,2]
[351731037,1738770639790,-1675.07,0.00015256,2]
[351731038,1738770639799,-500.0,0.00015256,2]
[351731039,1738770639809,-1513.8,0.00015256,2]
[351731040,1738770639819,-500.0,0.00015256,2]
[351731041,1738770639828,-1092.35,0.00015256,2]
[351731042,1738770639838,-785.82,0.00015256,2]
[351731043,1738770639849,-2523.69,0.00015256,2]
[351731044,1738770639859,-500.0,0.00015256,2]
[351731045,1738770639869,-1492.66,0.00015256,2]
[351731046,1738770639879,-949.11,0.00015256,2]
[351731047,1738770639889,-500.0,0.00015256,2]
[351731048,1738770639899,-500.0,0.00015256,2]
[351731049,1738770639909,-624.22,0.00015256,2]
[351731050,1738770639919,-500.0,0.00015256,2]
[351731051,1738770639930,-1018.43,0.00015256,2]
[351731052,1738770639941,-1941.78,0.00015256,2]
[351731053,1738770639951,-500.0,0.00015256,2]
[351731054,1738770639960,-500.0,0.00015256,2]
[351731055,1738770639969,-500.0,0.00015256,2]
[351731056,1738770639979,-7746.62,0.00015256,2]
[351731057,1738770639989,-500.0,0.00015256,2]
[351731058,1738770639999,-417.94869087,0.00015256,2]
[351731059,1738770640012,-500.0,0.00015256,2]
[351731060,1738770640022,-756.74,0.00015256,2]
[351731061,1738770640032,-500.0,0.00015256,2]
[351731062,1738770640043,-3267.88,0.00015256,2]
[351731063,1738770640053,-500.0,0.00015256,2]
[351731064,1738770640064,-500.0,0.00015256,2]
[351731065,1738770640075,-1323.32,0.00015256,2]
[351731066,1738770640085,-2735.06,0.00015256,2]
[351731067,1738770640095,-495.71475009,0.00015256,2]
[351731068,1738770640105,-500.0,0.00015256,2]
[351731069,1738770640115,-500.0,0.00015256,2]
[351731070,1738770640126,-500.0,0.00015256,2]
[351731071,1738770640136,-500.0,0.00015256,2]
[351731072,1738770640148,-39226.09,0.00015256,2]
[351731073,1738770640161,-119461.6,0.00015256,2]
[351731075,1738770640172,-500.0,0.00015256,2]
[351731077,1738770640182,-602.64,0.00015256,2]
[351731078,1738770640192,-500.0,0.00015256,2]
[351731079,1738770640201,-1121.41,0.00015256,2]
[351731080,1738770640211,-4917.94,0.00015256,2]
[351731082,1738770640220,-5449.14,0.00015256,2]
[351731084,1738770640230,-500.0,0.00015256,2]
[351731086,1738770640240,-3087.48,0.00015256,2]
[351731088,1738770640249,-1415.87,0.00015256,2]
[351731089,1738770640259,-656.25,0.00015256,2]
[351731091,1738770640270,-700.71,0.00015256,2]
[351731094,1738770640283,-500.0,0.00015256,2]
[351731096,1738770640294,-793.74,0.00015256,2]
[351731098,1738770640304,-500.0,0.00015256,2]
[351731100,1738770640314,-2611.66,0.00015256,2]
[351731102,1738770640324,-178.00689569,0.00015256,2]
[351731104,1738770640334,-500.0,0.00015256,2]
[351731106,1738770640346,-500.0,0.00015256,2]
[351731108,1738770640356,-500.0,0.00015256,2]
[351731109,1738770640366,-723.07,0.00015256,2]
[351731111,1738770640377,-500.0,0.00015256,2]
[351731113,1738770640387,-500.0,0.00015256,2]
[351731115,1738770640398,-500.0,0.00015256,2]
[351731117,1738770640407,-1657.86,0.00015256,2]
[351731119,1738770640417,-326.52367571,0.00015256,2]
[351731121,1738770640427,-500.0,0.00015256,2]
[351731123,1738770640437,-500.0,0.00015256,2]
[351731125,1738770640446,-500.0,0.00015256,2]
[351731127,1738770640456,-500.0,0.00015256,2]
[351731129,1738770640466,-1008.03,0.00015256,2]
[351731131,1738770640475,-500.0,0.00015256,2]
[351731133,1738770640484,-500.0,0.00015256,2]
[351731135,1738770640494,-500.0,0.00015256,2]
[351731137,1738770640503,-500.0,0.00015256,2]
[351731139,1738770640512,-500.0,0.00015256,2]
[351731141,1738770640521,-500.0,0.00015256,2]
[351731143,1738770640530,-610.66,0.00015256,2]
[351731145,1738770640539,-500.0,0.00015256,2]
[351731147,1738770640548,-500.0,0.00015256,2]
[351731148,1738770640558,-500.0,0.00015256,2]
[351731149,1738770640576,-194.24532241,0.00015256,2]
[351731150,1738770640585,-601.26,0.00015256,2]
[351731151,1738770640596,-500.0,0.00015256,2]
[351731152,1738770640605,-632.09,0.00015256,2]
[351731153,1738770640615,-500.0,0.00015256,2]
[351731154,1738770640625,-500.0,0.00015256,2]
[351731155,1738770640635,-1166.43,0.00015256,2]
[351731156,1738770640644,-264.22260139,0.00015256,2]
[351731157,1738770640654,-500.0,0.00015256,2]
[351731158,1738770640663,-524.19907613,0.00015256,2]
[351731159,1738770640674,-500.0,0.00015257,2]
[351731160,1738770640688,-500.0,0.00015257,2]
[351731161,1738770640698,-547.18,0.00015257,2]
[351731162,1738770640707,-1166.09,0.00015257,2]
[351731163,1738770640717,-500.0,0.00015257,2]
[351731164,1738770640727,-500.0,0.00015257,2]
[351731165,1738770640737,-500.0,0.00015257,2]
[351731166,1738770640746,-777.61,0.00015257,2]
[351731167,1738770640756,-500.0,0.00015257,2]
[351731169,1738770640765,-500.0,0.00015257,2]
[351731171,1738770640775,-500.0,0.00015257,2]
[351731173,1738770640785,-500.0,0.00015257,2]
[351731174,1738770640795,-500.0,0.00015257,2]
[351731175,1738770640804,-701.21,0.00015257,2]
[351731176,1738770640813,-522.57205395,0.00015257,2]
[351731177,1738770640822,-500.0,0.00015257,2]
[351731178,1738770640832,-500.0,0.00015257,2]
[351731179,1738770640842,-522.31791912,0.00015257,2]